bitfinex/quotes_BTCUSD_20241226
["timestamp","ask_amount","ask_price","bid_price","bid_amount"]
[1735237835398,0.208353,95991.0,95984.0,0.14015638]
[1735237835854,0.208353,95991.0,95980.0,0.14015638]
[1735237836261,0.208353,95991.0,95984.0,0.002]
[1735237836468,0.208353,95991.0,95984.0,0.003]
[1735237836738,0.208353,95991.0,95984.0,0.002]
[1735237836995,0.208342,95996.0,95984.0,0.002]
[1735237837263,0.208333,96000.0,95985.0,0.208365]
[1735237837491,0.208337,95998.0,95985.0,0.208365]
[1735237837741,0.10398632,95998.0,95985.0,0.41673]
[1735237838167,0.208339,95997.0,95984.0,0.002]
[1735237838400,0.208339,95997.0,95982.0,0.416742]
[1735237838826,0.208348,95993.0,95982.0,0.208371]
[1735237839162,0.208348,95993.0,95984.0,0.005]
[1735237839388,0.208348,95993.0,95984.0,0.002]
[1735237839939,0.208348,95993.0,95979.0,0.34853338]
[1735237840248,0.208348,95993.0,95984.0,0.004]
[1735237840575,0.208339,95997.0,95984.0,0.004]
[1735237840786,0.10398632,95998.0,95985.0,0.208365]
[1735237841608,0.416632,96008.0,95988.0,0.17039652]
[1735237841855,0.20832,96006.0,95994.0,0.208344]
[1735237842403,0.208328,96003.0,95989.0,0.416714]
[1735237843192,0.208328,96003.0,95992.0,0.208348]
[1735237843395,0.06485343,96002.0,95992.0,0.208348]
[1735237843837,0.06485343,96002.0,95992.0,0.30195151]
[1735237844339,0.06485343,96002.0,95992.0,0.29795151]
[1735237844914,0.209328,96003.0,95992.0,0.29795151]
[1735237845182,0.208328,96003.0,95992.0,0.29895151]
[1735237845596,0.208328,96003.0,95992.0,0.30195151]
[1735237845821,0.208328,96003.0,95992.0,0.29795151]
[1735237846022,0.208328,96003.0,95992.0,0.30095151]
[1735237846248,0.208328,96003.0,95992.0,0.30395151]
[1735237846628,0.208328,96003.0,95993.0,0.09360351]
[1735237847798,0.20832,96006.0,95994.0,0.208346]
[1735237848338,0.41664,96006.0,95994.0,0.208346]
[1735237848577,0.20832,96006.0,95994.0,0.208346]
[1735237849072,0.2084734,96015.0,95994.0,0.208346]
[1735237849073,0.2084734,96015.0,95994.0,0.0809]
[1735237849251,0.20831,96011.0,96000.0,0.208332]
[1735237850362,0.20831,96011.0,96000.0,0.209332]
[1735237850783,0.00015488,96013.0,96000.0,0.001]
[1735237851025,0.208307,96012.0,96001.0,0.208331]
[1735237852967,0.209307,96012.0,96001.0,0.208331]
[1735237853120,0.24221676,96012.0,96001.0,0.208331]
[1735237853464,0.24221676,96012.0,96000.0,0.09460351]
[1735237853465,0.10398632,96011.0,96000.0,0.09360351]
[1735237853828,0.10398632,96011.0,95999.0,0.09360351]
[1735237854381,0.208311,96010.0,95999.0,0.08960351]
[1735237854517,0.208313,96009.0,95999.0,0.08960351]
[1735237854716,0.004,96012.0,96004.0,0.208323]
[1735237854921,0.004,96012.0,96001.0,0.001]
[1735237855120,0.20846088,96013.0,96001.0,0.209331]
[1735237855663,0.00015488,96013.0,96005.0,0.208322]
[1735237856708,0.00015488,96013.0,96005.0,0.416644]
[1735237856863,0.00015488,96013.0,96005.0,0.208322]
[1735237858000,0.00015488,96013.0,96005.0,0.209322]
[1735237858621,0.00115488,96013.0,96005.0,0.001]
[1735237858822,0.00015488,96013.0,96005.0,0.001]
[1735237859017,0.00015488,96013.0,96005.0,0.002]
[1735237859220,0.00015488,96013.0,96005.0,0.001]
[1735237859558,0.00015488,96013.0,96005.0,0.003]
[1735237860378,0.04185536,96013.0,96005.0,0.003]
[1735237860709,0.208307,96012.0,96005.0,0.003]
[1735237860919,0.00015488,96013.0,96005.0,0.003]
[1735237861326,0.00015488,96013.0,96009.0,0.208312]
[1735237861492,0.00015488,96013.0,96009.0,0.416625]
[1735237861692,0.00015488,96013.0,96011.0,0.208309]
[1735237862135,0.00015488,96013.0,96010.0,0.0467]
[1735237862363,0.00015488,96013.0,96004.0,0.208324]
[1735237862582,0.208309,96011.0,96009.0,0.14015638]
[1735237862789,0.00015488,96013.0,96009.0,0.14115638]
[1735237862955,0.00015488,96013.0,96009.0,0.14015638]
[1735237863359,0.00015488,96013.0,96010.0,0.001]
[1735237863566,0.00015488,96013.0,96005.0,0.208321]
[1735237863765,0.00015488,96013.0,96009.0,0.208311]
[1735237864065,0.00015488,96013.0,96009.0,0.06408874]
[1735237864291,0.00015488,96013.0,96009.0,0.002]
[1735237864621,0.00015488,96013.0,96009.0,0.210312]
[1735237865396,0.00015488,96013.0,96009.0,0.002]
[1735237866025,0.00015488,96013.0,96010.0,0.208311]
[1735237867831,0.00015488,96013.0,96006.0,0.30185479]
[1735237868034,0.10398632,96012.0,96006.0,0.09353479]
[1735237868235,0.416629,96009.0,96006.0,0.09353479]
[1735237869335,0.416629,96009.0,96006.0,0.08953479]
[1735237869560,0.416629,96009.0,96006.0,0.09153479]
[1735237869760,0.416629,96009.0,96006.0,0.002]
[1735237869970,0.416629,96009.0,95999.0,8.55e-05]
[1735237870140,0.416629,96009.0,96006.0,0.004]
[1735237870818,0.416629,96009.0,96006.0,0.002]
[1735237871010,0.288518,96007.0,96006.0,0.005]
[1735237871181,0.51550432,96007.0,96006.0,0.005]
[1735237871587,0.71120432,96007.0,96006.0,0.003]
[1735237871786,0.71120432,96007.0,96006.0,0.006]
[1735237872010,0.81519064,96007.0,96006.0,0.006]
[1735237872243,0.81519064,96007.0,96006.0,0.003]
[1735237872443,0.607233,96000.0,95999.0,8.55e-05]
[1735237872668,0.81121932,96000.0,95999.0,8.55e-05]
[1735237872826,0.707248,95993.0,95992.0,8.55e-05]
[1735237872979,0.91522064,95993.0,95992.0,8.55e-05]
[1735237873555,0.81123432,95993.0,95992.0,8.55e-05]
[1735237874469,0.208394,95972.0,95964.0,0.19114001]
[1735237875819,0.208394,95972.0,95964.0,0.19129495]
[1735237875935,0.208394,95972.0,95964.0,0.19529495]
[1735237877173,0.208394,95972.0,95964.0,0.19629495]
[1735237877412,0.208405,95967.0,95964.0,0.19629495]
[1735237877612,0.416811,95967.0,95964.0,0.19629495]
[1735237877793,0.416811,95967.0,95964.0,0.19229495]
[1735237878167,0.416811,95967.0,95964.0,0.19529495]
[1735237878371,0.416811,95967.0,95964.0,0.19129495]
[1735237879347,0.416811,95967.0,95964.0,0.19429495]
[1735237879553,0.208409,95965.0,95964.0,0.19429495]
[1735237880072,0.208405,95967.0,95964.0,0.19129495]
[1735237880333,0.208405,95967.0,95964.0,0.19329495]
[1735237880870,0.208405,95967.0,95964.0,0.19429495]
[1735237881078,0.208405,95967.0,95964.0,0.19629495]
[1735237881277,0.208405,95967.0,95964.0,0.19329495]
[1735237881639,0.416811,95967.0,95964.0,0.19629495]
[1735237881831,0.208409,95965.0,95964.0,0.19629495]
[1735237882629,0.208409,95965.0,95964.0,0.19429495]
[1735237882856,0.208409,95965.0,95964.0,0.19138055]
[1735237883424,0.208409,95965.0,95964.0,0.19338055]
[1735237883807,0.31239532,95965.0,95964.0,0.19338055]
[1735237884010,0.38990187,95965.0,95964.0,0.19338055]
[1735237884212,0.38990187,95965.0,95964.0,0.00224054]
[1735237884413,0.0001712,95971.0,95956.0,0.208428]
[1735237884611,0.0001712,95971.0,95946.0,0.15104223]
[1735237884612,0.0001548,95965.0,95964.0,0.212411]
[1735237885100,0.0001548,95965.0,95964.0,0.208411]
[1735237885294,0.0011548,95965.0,95964.0,0.208411]
[1735237885685,0.0001548,95965.0,95964.0,0.208411]
[1735237885885,0.0001548,95965.0,95964.0,0.211411]
[1735237886419,0.0001548,95965.0,95964.0,0.213411]
[1735237886967,0.0001548,95965.0,95964.0,0.211411]
[1735237887201,0.0011548,95965.0,95964.0,0.213411]
[1735237887407,0.0011548,95965.0,95964.0,0.291211]
[1735237887637,0.0011548,95965.0,95964.0,0.288211]
[1735237887853,0.0001548,95965.0,95964.0,0.286211]
[1735237888184,0.0091548,95965.0,95964.0,0.54419732]
[1735237888388,0.0091548,95965.0,95964.0,0.54019732]
[1735237888589,0.0181548,95965.0,95964.0,0.59880893]
[1735237888811,0.0181548,95965.0,95964.0,0.70279525]
[1735237889024,8e-07,95965.0,95964.0,0.80279525]
[1735237889816,0.0090008,95965.0,95964.0,1.38102659]
[1735237890028,0.0001712,95971.0,95965.0,0.15]
[1735237890233,0.0001712,95971.0,95970.0,0.436198]
[1735237890446,0.0001712,95971.0,95970.0,0.54018432]
[1735237891152,0.009,95971.0,95970.0,0.54018432]
[1735237891357,0.018,95971.0,95970.0,0.54018432]
[1735237891775,0.009,95971.0,95970.0,0.88465499]
[1735237891986,0.01,95971.0,95970.0,1.14504131]
[1735237892400,0.208476,96013.0,95971.0,0.15]
[1735237892625,0.208309,96011.0,95997.0,0.208337]
[1735237892808,0.00032591,96013.0,96001.0,0.20833]
[1735237892968,0.10398632,96012.0,96001.0,0.20833]
[1735237893565,0.10398632,96012.0,96001.0,0.44664265]
[1735237893779,0.00132591,96013.0,96007.0,0.208317]
[1735237893990,0.00132591,96013.0,96006.0,0.208318]
[1735237894203,0.00132591,96013.0,96000.0,0.208332]
[1735237894204,0.10398632,96012.0,96000.0,0.208332]
[1735237894427,0.31229332,96012.0,96001.0,0.004]
[1735237894835,0.31229332,96012.0,96007.0,0.005]
[1735237895236,0.31229332,96012.0,96001.0,0.004]
[1735237895707,0.31229332,96012.0,95996.0,0.416682]
[1735237895708,0.31229332,96012.0,96000.0,0.005]
[1735237895907,0.33019096,96012.0,96000.0,0.005]
[1735237896121,0.33019096,96012.0,96006.0,0.005]
[1735237896298,0.52060032,96012.0,96006.0,0.005]
[1735237896681,0.52060032,96012.0,95996.0,0.416682]
[1735237897245,0.52060032,96012.0,96000.0,0.005]
[1735237897432,0.52060032,96012.0,96001.0,0.005]
[1735237897596,0.10398632,96012.0,96001.0,0.005]
[1735237897801,0.10398632,96012.0,96000.0,0.30482952]
[1735237898002,0.11198632,96012.0,96002.0,0.208328]
[1735237898225,0.11198632,96012.0,96001.0,0.208331]
[1735237898429,0.10398632,96012.0,96001.0,0.208331]
[1735237898602,0.208309,96011.0,96001.0,0.006]
[1735237898969,0.208309,96011.0,95996.0,0.208341]
[1735237899323,0.208309,96011.0,96002.0,0.005]
[1735237900595,0.208309,96011.0,96002.0,0.004]
[1735237901024,0.208309,96011.0,96001.0,0.006]
[1735237901340,0.208309,96011.0,96002.0,0.004]
[1735237901539,0.208309,96011.0,96002.0,0.01]
[1735237901880,0.13527383,96012.0,96002.0,0.004]
[1735237902095,0.13527383,96012.0,96003.0,0.208326]
[1735237902427,0.10398632,96012.0,96003.0,0.208326]
[1735237903561,0.10398632,96012.0,96001.0,0.004]
[1735237904093,0.00032591,96013.0,96000.0,0.09149652]
[1735237904342,0.00032591,96013.0,96011.0,0.208308]
[1735237904946,0.001,96012.0,96011.0,0.208308]
[1735237905299,0.00032591,96013.0,96011.0,0.208308]
[1735237905670,0.00132591,96013.0,96011.0,0.217308]
[1735237905947,0.00032591,96013.0,96011.0,0.208308]
[1735237906160,0.0011712,96012.0,96011.0,0.217308]
[1735237906485,0.0091712,96012.0,96011.0,0.217308]
[1735237907105,0.0011712,96012.0,96011.0,0.217308]
[1735237907364,0.0011712,96012.0,96011.0,0.214308]
[1735237907539,0.0011712,96012.0,96011.0,0.2568698]
[1735237907746,0.0011712,96012.0,96011.0,0.2658698]
[1735237907948,0.0011712,96012.0,96011.0,0.2568698]
[1735237908326,0.0021712,96012.0,96011.0,0.2658698]
[1735237912258,0.0021712,96012.0,96011.0,0.3465698]
[1735237912702,0.0021712,96012.0,96011.0,0.304008]
[1735237913305,0.0021712,96012.0,96011.0,0.015]
[1735237914284,0.0021712,96012.0,96011.0,0.14214146]
[1735237914873,0.0021712,96012.0,96011.0,0.1411]
[1735237917551,0.0021712,96012.0,96011.0,0.015]
[1735237919052,0.0021712,96012.0,96011.0,0.08824677]
[1735237919626,0.0021712,96012.0,96011.0,0.0872053]
[1735237921273,0.0021712,96012.0,96011.0,0.015]
[1735237921855,0.00032591,96013.0,96012.0,0.208307]
[1735237922950,0.00032591,96013.0,96012.0,0.59339332]
[1735237923365,0.0001714,96015.0,96012.0,0.59339332]
[1735237923366,0.0001714,96015.0,96014.0,0.358302]
[1735237923573,0.0001714,96015.0,96014.0,0.5768761]
[1735237924212,0.0001714,96015.0,96014.0,0.68086242]
[1735237924350,0.0001714,96015.0,96014.0,1.02482962]
[1735237924965,0.0001714,96032.0,96030.0,0.208268]
[1735237925164,0.00022301,96031.0,96030.0,0.290368]
[1735237927384,0.00022301,96031.0,96030.0,0.295368]
[1735237927596,0.00022301,96031.0,96030.0,0.32751705]
[1735237927976,0.00022301,96031.0,96030.0,0.33451705]
[1735237930455,0.00022301,96031.0,96030.0,0.302368]
[1735237931006,0.00022301,96031.0,96030.0,0.64681134]
[1735237931511,0.00022301,96031.0,96030.0,0.65742215]
[1735237932129,0.00022301,96031.0,96030.0,0.84379723]
[1735237933398,0.00022301,96031.0,96030.0,0.65742215]
[1735237933779,0.00022301,96031.0,96030.0,0.76140847]
[1735237933994,0.00022301,96031.0,96030.0,0.65742215]
[1735237935315,0.00022301,96031.0,96030.0,0.56471134]
[1735237935516,0.00022301,96031.0,96030.0,0.35644334]
[1735237935896,0.00022301,96031.0,96030.0,0.5894122]
[1735237936872,0.00022301,96031.0,96030.0,0.35644334]
[1735237937239,0.0801,96035.0,96030.0,0.35644334]
[1735237937551,0.00484305,96031.0,96030.0,0.35644334]
[1735237937717,0.08061614,96035.0,96030.0,0.35644334]
[1735237937963,0.00484305,96031.0,96030.0,0.012]
[1735237938137,0.208262,96033.0,96029.0,0.14010355]
[1735237938372,0.208259,96034.0,96030.0,0.004]
[1735237938519,0.00484305,96032.0,96030.0,0.01]
[1735237938719,0.08061614,96035.0,96030.0,0.004]
[1735237938921,0.00484305,96031.0,96030.0,0.004]
[1735237939246,0.00051614,96035.0,96030.0,0.011]
[1735237939450,0.00484305,96031.0,96030.0,0.011]
[1735237939650,0.0801,96031.0,96030.0,0.011]
[1735237939855,0.23872937,96031.0,96030.0,0.011]
[1735237940285,0.23872937,96031.0,96030.0,0.007]
[1735237940483,0.208268,96030.0,96029.0,0.09341561]
[1735237940689,0.31225432,96030.0,96029.0,0.09341561]
[1735237941066,0.31709737,96030.0,96029.0,0.09341561]
[1735237941266,0.31709737,96030.0,96013.0,0.09341561]
[1735237941267,0.208286,96022.0,96013.0,0.09341561]
[1735237941674,0.0801,96015.0,96013.0,0.09341561]
[1735237941998,0.36208832,96014.0,96013.0,0.09341561]
[1735237942200,0.36687292,96014.0,96013.0,0.09341561]
[1735237942401,0.61997292,96014.0,96013.0,0.09841561]
[1735237942593,0.71997292,96014.0,96013.0,0.005]
[1735237943413,0.71997292,96014.0,96013.0,0.0051712]
[1735237943607,0.60735477,96014.0,96013.0,0.0001712]
[1735237943904,0.60735477,96014.0,96013.0,0.0021712]
[1735237944263,0.60735477,96014.0,96013.0,0.0011712]
[1735237944471,0.208326,96004.0,95992.0,0.2066923]
[1735237944667,0.1346846,96014.0,95994.0,0.208346]
[1735237944854,0.00461766,96003.0,96000.0,0.208332]
[1735237945057,0.10398632,96014.0,96000.0,0.208332]
[1735237945310,0.00461228,96002.0,96000.0,0.208332]
[1735237945520,0.10398632,96014.0,96000.0,0.208332]
[1735237945721,0.10398632,96014.0,96000.0,0.20838361]
[1735237945722,0.00461228,96001.0,96000.0,0.20838361]
[1735237945875,0.10398632,96014.0,96000.0,0.20838361]
[1735237946076,0.0498,96025.0,96001.0,0.04167276]
[1735237946287,0.0791,96027.0,96010.0,0.09149652]
[1735237946557,0.0791,96034.0,96016.0,0.208297]
[1735237946760,0.046,96036.0,96022.0,0.208285]
[1735237946887,0.254255,96036.0,96023.0,0.208283]
[1735237947098,0.462511,96036.0,96019.0,0.208291]
[1735237948039,0.462511,96036.0,96023.0,0.002]
[1735237948372,0.2083506,96032.0,96023.0,0.002]
[1735237948562,0.2083506,96032.0,96019.0,0.209291]
[1735237948736,0.04626911,96031.0,96019.0,0.208291]
[1735237949063,0.04626911,96031.0,96019.0,0.212291]
[1735237949844,8.56e-05,96032.0,96023.0,0.208282]
[1735237950042,8.56e-05,96032.0,96024.0,0.208281]
[1735237951246,8.56e-05,96032.0,96024.0,0.210281]
[1735237951437,8.56e-05,96032.0,96024.0,0.212281]
[1735237951567,8.56e-05,96032.0,96024.0,0.420561]
[1735237951778,8.56e-05,96032.0,96024.0,0.21228]
[1735237952190,8.56e-05,96032.0,96024.0,0.004]
[1735237952385,8.56e-05,96032.0,96028.0,0.208272]
[1735237952723,8.56e-05,96032.0,96028.0,0.416544]
[1735237953755,8.56e-05,96032.0,96028.0,0.210272]
[1735237953958,8.56e-05,96032.0,96028.0,0.004]
[1735237953959,0.208266,96031.0,96028.0,0.004]
[1735237954231,0.416532,96031.0,96028.0,0.004]
[1735237954463,0.20827,96029.0,96027.0,0.09341561]
[1735237954602,0.04398345,96030.0,96028.0,0.09341561]
[1735237954603,0.00475669,96030.0,96028.0,0.09341561]
[1735237954802,0.20827,96029.0,96028.0,0.09741561]
[1735237955543,0.21302669,96029.0,96028.0,0.09941561]
[1735237955717,0.21302669,96029.0,96028.0,0.09950121]
[1735237955923,0.31701301,96029.0,96028.0,0.09950121]
[1735237956125,0.31701301,96029.0,96028.0,0.0060856]
[1735237956126,0.39461301,96029.0,96028.0,0.0060856]
[1735237956542,0.39461301,96029.0,96028.0,0.0020856]
[1735237957214,0.39461301,96029.0,96028.0,8.56e-05]
[1735237957688,0.39461301,96029.0,96028.0,0.0020856]
[1735237957898,0.39461301,96029.0,96028.0,8.56e-05]
[1735237958327,0.39661301,96029.0,96028.0,8.56e-05]
[1735237958509,0.49373181,96029.0,96028.0,8.56e-05]
[1735237959365,0.49373181,96029.0,96007.0,0.208317]
[1735237959366,0.208296,96018.0,96007.0,0.208317]
[1735237959755,0.00469918,96017.0,96007.0,0.208317]
[1735237960999,0.00469918,96017.0,96008.0,0.208315]
[1735237961376,0.208296,96017.0,96007.0,0.211317]
[1735237961581,0.00469918,96016.0,96007.0,0.211317]
[1735237961935,0.00469918,96016.0,96007.0,0.215317]
[1735237962142,0.18158632,96029.0,96007.0,0.003]
[1735237962282,0.208275,96027.0,96008.0,0.213315]
[1735237962491,0.208275,96027.0,96014.0,0.2083]
[1735237962492,0.208279,96025.0,96014.0,0.2083]
[1735237963219,0.0046971,96024.0,96014.0,0.2083]
[1735237963595,0.0046971,96024.0,96018.0,0.208292]
[1735237963920,8.56e-05,96032.0,96018.0,0.208292]
[1735237964126,0.0046971,96023.0,96014.0,0.003]
[1735237964304,0.208285,96022.0,96014.0,0.003]
[1735237964689,0.208285,96022.0,96009.0,0.208313]
[1735237964690,0.02548106,96022.0,96009.0,0.208313]
[1735237964894,0.00465256,96022.0,96009.0,0.416626]
[1735237965061,0.208282,96024.0,96018.0,0.003]
[1735237965321,0.208289,96020.0,96018.0,0.004]
[1735237965524,0.10398632,96019.0,96018.0,0.003]
[1735237965934,0.10862973,96019.0,96018.0,0.003]
[1735237966309,0.10862973,96019.0,96009.0,0.208313]
[1735237966655,0.208294,96018.0,96014.0,0.004]
[1735237966896,0.24374756,96018.0,96014.0,0.004]
[1735237967097,0.03545356,96018.0,96014.0,0.004]
[1735237967303,0.286796,96017.0,96003.0,0.208325]
[1735237967472,0.286796,96017.0,96009.0,0.001]
[1735237967881,0.00464299,96016.0,96009.0,0.001]
[1735237968088,0.00464299,96016.0,96014.0,0.002]
[1735237968504,0.04262359,96015.0,96014.0,0.002]
[1735237968746,0.10398632,96015.0,96014.0,0.002]
[1735237968918,0.31692931,96015.0,96014.0,0.002]
[1735237969315,0.31692931,96015.0,96000.0,0.20846921]
[1735237969535,0.208305,96013.0,96000.0,0.20846921]
[1735237969933,0.00464299,96012.0,96000.0,0.20846921]
[1735237970301,0.208309,96011.0,96000.0,0.00013721]
[1735237970512,0.10398632,96010.0,96000.0,0.00013721]
[1735237970682,0.208329,96002.0,96000.0,0.00013721]
[1735237971292,0.00464299,96001.0,96000.0,0.00013721]
[1735237971497,0.00453543,96001.0,96000.0,0.00013721]
[1735237971641,0.00453543,96001.0,96000.0,0.00313721]
[1735237972074,0.002,96010.0,96001.0,0.208331]
[1735237972456,0.208304,96014.0,96001.0,0.208331]
[1735237972662,0.208307,96012.0,96001.0,0.208331]
[1735237972861,0.31229332,96012.0,96001.0,0.208331]
[1735237973288,0.31229332,96012.0,96000.0,0.00413721]
[1735237973496,0.31229332,96012.0,96000.0,0.00713721]
[1735237973901,0.31229332,96012.0,96000.0,0.00413721]
[1735237974069,0.31229332,96012.0,96000.0,0.00013721]
[1735237974275,0.31229332,96012.0,96001.0,0.003]
[1735237974467,0.31229332,96012.0,96006.0,0.208318]
[1735237974468,0.10398632,96012.0,96006.0,0.208318]
[1735237975017,0.10398632,96012.0,96002.0,0.208328]
[1735237975606,0.10398632,96012.0,96006.0,0.004]
[1735237976158,0.10398632,96012.0,96002.0,0.208328]
[1735237976782,0.10398632,96012.0,96006.0,0.003]
[1735237977067,0.10398632,96012.0,96002.0,0.208328]
[1735237977262,0.17887435,96012.0,96002.0,0.209328]
[1735237977560,0.17887435,96012.0,96002.0,0.211328]
[1735237977561,0.17687435,96012.0,96002.0,0.211328]
[1735237977965,0.208309,96011.0,96006.0,0.004]
[1735237978209,0.208309,96011.0,96002.0,0.003]
[1735237978210,0.0822,96010.0,96002.0,0.003]
[1735237978405,0.10398632,96009.0,96002.0,0.003]
[1735237978611,0.208326,96003.0,96002.0,0.007]
[1735237978814,0.31231232,96003.0,96002.0,0.003]
[1735237978989,0.31690775,96003.0,96002.0,0.003]
[1735237979333,0.31690775,96003.0,96000.0,0.00013721]
[1735237979554,0.10398632,96002.0,96000.0,0.00013721]
[1735237979951,0.10398632,96002.0,95991.0,0.20548721]
[1735237979952,0.00459543,96001.0,95991.0,0.20548721]
[1735237980415,0.00459543,96001.0,95985.0,0.208364]
[1735237980416,0.208333,96000.0,95985.0,0.208364]
[1735237980650,0.208333,96000.0,95984.0,0.09341561]
[1735237980651,0.10398632,95999.0,95984.0,0.09341561]
[1735237980858,0.208337,95998.0,95985.0,0.208365]
[1735237981085,0.31232332,95998.0,95985.0,0.208365]
[1735237981305,0.31232332,95998.0,95991.0,0.003]
[1735237981517,0.31232332,95998.0,95988.0,0.208357]
[1735237981867,0.31232332,95998.0,95991.0,0.002]
[1735237982956,0.10398632,95998.0,95991.0,0.002]
[1735237983559,0.10398632,95998.0,95991.0,0.006]
[1735237984287,0.208339,95997.0,95991.0,0.006]
[1735237984663,0.208339,95997.0,95991.0,0.004]
[1735237985245,0.10398632,95998.0,95991.0,0.004]
[1735237985798,0.10398632,95998.0,95989.0,0.208356]
[1735237986005,0.10398632,95998.0,95988.0,0.003]
[1735237986006,0.208339,95997.0,95988.0,0.003]
[1735237986404,0.10398632,95998.0,95989.0,0.208357]
[1735237986627,0.00013965,96002.0,96001.0,0.208331]
[1735237987147,0.00013965,96002.0,95999.0,0.208334]
[1735237987437,0.00013965,96002.0,95999.0,0.416668]
[1735237988215,0.00013965,96002.0,96001.0,0.002]
[1735237989515,0.00013965,96002.0,96001.0,0.00304157]
[1735237989956,0.00013965,96002.0,96001.0,0.002]
[1735237990655,0.00013965,96002.0,96001.0,0.208331]
[1735237990874,0.00013965,96002.0,96001.0,0.35143455]
[1735237991438,0.00013965,96002.0,96001.0,0.35343455]
[1735237991780,0.00031085,96002.0,96001.0,0.69835339]
[1735237991981,0.00031085,96002.0,96001.0,0.69635339]
[1735237992159,0.00031085,96002.0,96001.0,0.69335339]
[1735237992356,0.00031085,96002.0,96001.0,0.69635339]
[1735237992560,0.00031085,96002.0,96001.0,0.211331]
[1735237993622,0.00031085,96002.0,96001.0,0.30978159]
[1735237993794,0.00031085,96002.0,96001.0,0.30678159]
[1735237993996,0.00031085,96002.0,96001.0,0.30578159]
[1735237994152,0.00031085,96002.0,96001.0,0.31478159]
[1735237994539,0.00031085,96002.0,96001.0,0.208331]
[1735237994761,0.00331085,96002.0,96001.0,0.210331]
[1735237995003,0.00331085,96002.0,96001.0,0.209331]
[1735237995419,0.00031085,96002.0,96001.0,0.216331]
[1735237995828,0.00031085,96002.0,96001.0,0.220331]
[1735237996437,0.00031085,96002.0,96001.0,0.56520941]
[1735237996776,0.00031085,96002.0,96001.0,0.55720941]
[1735237996946,0.00031085,96002.0,96001.0,0.55820941]
[1735237997156,0.00031085,96002.0,96001.0,0.55420941]
[1735237997361,0.00331085,96002.0,96001.0,0.55520941]
[1735237999997,0.00331085,96002.0,96001.0,0.79870741]
[1735238000665,0.00331085,96002.0,96001.0,0.56573855]
[1735238003437,0.00331085,96002.0,96001.0,0.35740755]
[1735238003696,0.00331085,96002.0,96001.0,0.34687841]
[1735238004045,0.00792486,96002.0,96001.0,0.34687841]
[1735238004252,0.14975386,96002.0,96001.0,0.34687841]
[1735238004456,0.23706787,96002.0,96001.0,0.34687841]
[1735238005051,0.55936787,96002.0,96001.0,0.34687841]
[1735238005638,0.55636787,96002.0,96001.0,0.001]
[1735238005835,0.55636787,96002.0,96001.0,0.003]
[1735238006243,0.55636787,96002.0,96001.0,0.002]
[1735238006658,0.55636787,96002.0,96001.0,0.005]
[1735238006861,0.55636787,96002.0,96001.0,0.002]
[1735238007359,0.15,96000.0,95978.0,0.09368138]
[1735238007562,0.10398632,95999.0,95978.0,0.09368138]
[1735238007765,0.10857751,95999.0,95978.0,0.09368138]
[1735238008107,0.20835,95992.0,95975.0,0.09368138]
[1735238008311,0.31233632,95992.0,95975.0,0.09368138]
[1735238008515,0.39523735,95992.0,95975.0,0.09368138]
[1735238009286,0.39523735,95992.0,95970.0,8.56e-05]
[1735238009287,0.31233632,95992.0,95970.0,0.09376698]
[1735238009521,0.208375,95981.0,95970.0,0.09285258]
[1735238009733,0.208378,95979.0,95970.0,0.09285258]
[1735238010278,0.208378,95979.0,95968.0,0.36360723]
[1735238011508,0.10398632,95980.0,95968.0,0.15520623]
[1735238011833,0.208381,95978.0,95968.0,0.15520623]
[1735238012410,0.10398632,95977.0,95968.0,0.15820623]
[1735238012617,0.208387,95975.0,95968.0,0.16220623]
[1735238012865,0.31237332,95975.0,95968.0,0.15820623]
[1735238013021,0.35720052,95975.0,95968.0,0.15820623]
[1735238013199,0.35720052,95975.0,95968.0,0.16220623]
[1735238013405,0.35720052,95975.0,95968.0,0.15520623]
[1735238013842,0.35720052,95975.0,95968.0,0.15720623]
[1735238014042,0.35720052,95975.0,95968.0,0.15520623]
[1735238014244,0.04579708,95974.0,95968.0,0.15520623]
[1735238014441,0.208391,95973.0,95968.0,0.15520623]
[1735238014819,0.208391,95973.0,95968.0,0.15820623]
[1735238015246,0.208389,95974.0,95968.0,0.15820623]
[1735238015470,0.208389,95974.0,95970.0,8.56e-05]
[1735238016790,0.208366,95985.0,95970.0,0.0030856]
[1735238016964,0.11804495,95982.0,95970.0,8.56e-05]
[1735238017384,0.11804495,95982.0,95970.0,0.0040856]
[1735238017619,0.208374,95981.0,95970.0,0.0040856]
[1735238017822,0.10398632,95980.0,95970.0,0.0040856]
[1735238018587,0.208378,95979.0,95970.0,8.56e-05]
[1735238018796,0.208378,95979.0,95970.0,0.0030856]
[1735238019250,0.208378,95979.0,95970.0,8.56e-05]
[1735238019402,0.208387,95976.0,95970.0,0.0020856]
[1735238019605,0.208395,95972.0,95970.0,0.0040856]
[1735238019816,0.208395,95972.0,95970.0,0.0020856]
[1735238020225,0.10398632,95971.0,95970.0,0.0040856]
[1735238020428,0.20839,95974.0,95970.0,0.0020856]
[1735238020799,0.0479,95990.0,95970.0,0.0020856]
[1735238021023,0.208376,95980.0,95970.0,0.0020856]
[1735238021223,0.208381,95978.0,95970.0,0.0020856]
[1735238021625,0.208381,95978.0,95970.0,8.56e-05]
[1735238022059,0.208391,95974.0,95970.0,0.0040856]
[1735238022236,0.208391,95974.0,95970.0,0.0020856]
[1735238023020,0.208381,95978.0,95970.0,0.0060856]
[1735238023221,0.208381,95978.0,95970.0,0.0040856]
[1735238023222,0.03123673,95977.0,95970.0,0.0040856]
[1735238023427,0.03123673,95977.0,95970.0,8.56e-05]
[1735238023631,0.03123673,95977.0,95970.0,0.0090856]
[1735238024010,0.208385,95976.0,95970.0,0.0090856]
[1735238024214,0.10398632,95975.0,95970.0,0.0090856]
[1735238024424,0.208393,95973.0,95970.0,0.0050856]
[1735238024636,0.208396,95971.0,95970.0,0.0050856]
[1735238024861,0.52077932,95971.0,95968.0,0.15536114]
[1735238025020,0.2084,95969.0,95968.0,0.15536114]
[1735238025203,0.46305255,95969.0,95968.0,0.00015491]
[1735238026046,0.36108632,95969.0,95968.0,0.00315491]
[1735238026417,0.36108632,95969.0,95968.0,0.00715491]
[1735238026616,0.36108632,95969.0,95968.0,0.00015491]
[1735238026799,0.36108632,95969.0,95968.0,0.00115491]